bitfinex/quotes_BTCUSD_20251208
["timestamp","ask_amount","ask_price","bid_price","bid_amount"]
[1765201602793,0.01090203,91726.0,91720.0,0.0861]
[1765201603029,0.21805019,91722.0,91720.0,0.0861]
[1765201603207,0.21805257,91721.0,91720.0,0.0861]
[1765201603406,0.01090239,91723.0,91721.0,0.05326]
[1765201603637,0.21803979,91727.0,91722.0,0.13836]
[1765201603961,0.22894506,91726.0,91725.0,0.05326]
[1765201604162,0.2289417,91727.0,91725.0,0.05326]
[1765201604304,0.001,91728.0,91727.0,0.2180383]
[1765201604506,0.001,91728.0,91727.0,0.2712983]
[1765201604767,0.001,91728.0,91727.0,0.35801117]
[1765201605111,0.01090108,91734.0,91731.0,0.03309032]
[1765201605326,0.22610248,91734.0,91731.0,0.25111911]
[1765201605513,0.22892032,91735.0,91733.0,0.05326]
[1765201605710,0.22892032,91735.0,91734.0,0.05326]
[1765201605908,0.21799612,91745.0,91738.0,0.0109006]
[1765201606133,0.00011663,91745.0,91742.0,0.01090013]
[1765201606355,0.00011663,91745.0,91744.0,0.09283]
[1765201606791,0.00011663,91745.0,91744.0,0.17793]
[1765201608263,0.00011663,91745.0,91744.0,0.17954287]
[1765201609295,0.00011663,91745.0,91744.0,0.20473175]
[1765201609889,0.00011663,91745.0,91744.0,0.20573175]
[1765201610688,0.00011663,91745.0,91744.0,0.18354287]
[1765201611491,0.00011663,91745.0,91744.0,0.20573175]
[1765201616166,0.00011663,91745.0,91744.0,0.18354287]
[1765201618300,0.00011663,91745.0,91744.0,0.22753154]
[1765201618987,0.00011663,91745.0,91744.0,0.44552944]
[1765201619168,0.00011663,91745.0,91744.0,0.42372965]
[1765201620359,0.00011663,91745.0,91744.0,0.48625264]
[1765201620557,0.0004,91750.0,91749.0,0.2401749]
[1765201620763,0.0004,91750.0,91749.0,0.27103889]
[1765201621022,0.0004,91750.0,91749.0,0.34614889]
[1765201621389,0.0004,91750.0,91749.0,0.36833777]
[1765201621802,0.0004,91750.0,91749.0,0.34614889]
[1765201622267,0.0004,91750.0,91749.0,0.12816287]
[1765201622713,0.21838365,91750.0,91749.0,0.13116287]
[1765201623205,0.21838365,91750.0,91749.0,0.13216287]
[1765201623409,0.21838365,91750.0,91749.0,0.13055]
[1765201623607,0.21838365,91750.0,91749.0,0.05444]
[1765201624088,0.21838365,91750.0,91749.0,0.003]
[1765201624291,0.54138365,91750.0,91749.0,0.003]
[1765201624495,0.21805494,91720.0,91716.0,0.21806282]
[1765201624695,0.0109025,91722.0,91719.0,0.05121949]
[1765201624896,0.22895309,91722.0,91721.0,0.05144]
[1765201625282,0.22895309,91722.0,91721.0,0.12655]
[1765201625486,0.01090191,91727.0,91723.0,0.22894932]
[1765201625696,0.01090191,91727.0,91726.0,0.05144]
[1765201625899,0.01090179,91728.0,91726.0,0.05144]
[1765201626122,0.21803528,91729.0,91725.0,0.22894411]
[1765201626123,0.22893008,91732.0,91728.0,0.01090179]
[1765201626316,0.2353364,91737.0,91730.0,0.05144]
[1765201626317,0.22892191,91735.0,91730.0,0.05144]
[1765201626518,0.01090096,91735.0,91734.0,0.05144]
[1765201626992,0.22891699,91737.0,91734.0,0.12655]
[1765201627194,0.2289076,91741.0,91736.0,0.05144]
[1765201627482,0.2289076,91741.0,91736.0,0.22891667]
[1765201627483,0.01090037,91740.0,91736.0,0.22891667]
[1765201627689,0.21800094,91743.0,91740.0,0.06234037]
[1765201627817,0.21800094,91743.0,91742.0,0.09004]
[1765201627818,0.22890095,91743.0,91742.0,0.09004]
[1765201628359,0.22890095,91743.0,91742.0,0.0386]
[1765201628675,0.21802537,91733.0,91731.0,0.07511]
[1765201628888,0.21802537,91733.0,91732.0,0.0386]
[1765201629088,0.21802537,91733.0,91732.0,0.09004]
[1765201629394,0.002,91737.0,91734.0,0.21801903]
[1765201629637,0.002,91737.0,91735.0,0.21801831]
[1765201629837,0.002,91737.0,91736.0,0.05144]
[1765201630079,0.01090013,91742.0,91736.0,0.13745084]
[1765201630288,0.01090037,91740.0,91737.0,0.01090072]
[1765201630503,0.21802318,91734.0,91732.0,0.0396]
[1765201630945,0.01090013,91742.0,91739.0,0.21800931]
[1765201631167,0.21800044,91743.0,91740.0,0.21800697]
[1765201631420,0.22890966,91740.0,91735.0,0.03308984]
[1765201631608,0.01090025,91741.0,91738.0,0.21801118]
[1765201631814,0.21801014,91739.0,91737.0,0.01090072]
[1765201632026,0.001,91737.0,91736.0,0.22891737]
[1765201632444,0.001,91737.0,91736.0,0.27734737]
[1765201632626,0.22890154,91743.0,91736.0,0.27734737]
[1765201632627,0.01090001,91743.0,91740.0,0.21800633]
[1765201632864,0.22890039,91743.0,91742.0,0.04843]
[1765201633307,0.22890039,91743.0,91742.0,0.08463]
[1765201633520,0.21801225,91738.0,91736.0,0.01090084]
[1765201633742,0.01090072,91737.0,91735.0,0.21801884]
[1765201633951,0.22891533,91737.0,91734.0,0.22892249]
[1765201634151,0.22891533,91737.0,91736.0,0.12619]
[1765201634303,0.01090037,91740.0,91736.0,0.34420691]
[1765201634517,0.22890079,91743.0,91740.0,0.2180071]
[1765201634723,0.01090037,91740.0,91735.0,0.01090096]
[1765201635316,0.21801454,91737.0,91736.0,0.07776]
[1765201635517,0.01090048,91739.0,91736.0,0.07776]
[1765201635716,0.22891092,91739.0,91738.0,0.08463]
[1765201636120,0.2289082,91740.0,91738.0,0.16239]
[1765201636327,0.22890337,91742.0,91739.0,0.04843]
[1765201636537,0.22990118,91743.0,91741.0,0.04843]
[1765201636731,0.22890118,91743.0,91742.0,0.04843]
[1765201638702,0.002,91743.0,91742.0,0.12619]
[1765201638901,0.002,91743.0,91742.0,0.34419265]
[1765201639307,0.003,91743.0,91742.0,0.34419265]
[1765201639942,0.003,91743.0,91742.0,0.34580552]
[1765201640163,0.002,91743.0,91742.0,0.12780287]
[1765201640367,0.002,91743.0,91742.0,0.34580552]
[1765201640912,0.01089965,91746.0,91743.0,0.21799867]
[1765201641125,0.01089965,91746.0,91745.0,0.04843]
[1765201641620,0.22889143,91747.0,91745.0,0.12619]
[1765201641814,0.22889143,91747.0,91746.0,0.04843]
[1765201642258,0.21800028,91743.0,91742.0,0.00161287]
[1765201642465,0.2179979,91744.0,91743.0,0.07776]
[1765201642895,0.21800978,91739.0,91738.0,0.0362]
[1765201643305,0.21800978,91739.0,91738.0,0.08463]
[1765201643512,0.2289055,91741.0,91739.0,0.21800967]
[1765201643722,0.2289055,91741.0,91740.0,0.12619]
[1765201644546,0.2289055,91741.0,91740.0,0.04843]
[1765201644796,0.2289055,91741.0,91738.0,0.0362]
[1765201644797,0.21800978,91739.0,91738.0,0.0362]
[1765201645017,0.00099999,91730.0,91724.0,0.01090227]
[1765201645275,0.01090132,91732.0,91727.0,0.22893876]
[1765201645480,0.0109012,91733.0,91729.0,0.01090167]
[1765201645685,0.01090108,91734.0,91732.0,0.08463]
[1765201645889,0.01090108,91734.0,91733.0,0.04843]
[1765201646093,0.22891368,91738.0,91733.0,0.34421404]
[1765201646309,0.22891309,91738.0,91735.0,0.21801921]
[1765201646534,0.003,91739.0,91737.0,0.04843]
[1765201646738,0.003,91739.0,91738.0,0.26644216]
[1765201646739,0.002,91739.0,91738.0,0.26644216]
[1765201646970,0.002,91739.0,91738.0,0.34420216]
[1765201647213,0.01089858,91755.0,91749.0,0.21798602]
[1765201647422,0.0004,91760.0,91749.0,0.30261602]
[1765201647423,0.01229798,91760.0,91749.0,0.30261602]
[1765201647633,0.22886735,91757.0,91749.0,0.38037602]
[1765201647848,0.01089894,91752.0,91749.0,0.16239]
[1765201648060,0.01089965,91746.0,91743.0,0.0362]
[1765201648299,0.01089989,91744.0,91739.0,0.21800883]
[1765201648512,0.01089989,91744.0,91737.0,0.0362]
[1765201648513,0.21801216,91738.0,91737.0,0.0362]
[1765201648724,0.21801216,91738.0,91724.0,0.01090227]
[1765201648725,0.21802404,91733.0,91728.0,0.0362]
[1765201648943,0.21802404,91733.0,91732.0,0.03631663]
[1765201650657,0.21802212,91734.0,91732.0,0.08474663]
[1765201651073,0.21802404,91733.0,91732.0,0.08474663]
[1765201651282,0.28364358,91734.0,91732.0,0.08474663]
[1765201651283,0.06562146,91734.0,91733.0,0.04843]
[1765201651489,0.22892031,91735.0,91733.0,0.12619]
[1765201651698,0.22891566,91737.0,91734.0,0.04843]
[1765201651904,0.01090096,91735.0,91732.0,0.03731663]
[1765201652113,0.01090096,91735.0,91733.0,0.07776]
[1765201652337,0.21801738,91736.0,91734.0,0.04843]
[1765201652542,0.21801738,91736.0,91735.0,0.04843]
[1765201652989,0.21802404,91733.0,91732.0,0.00011663]
[1765201654140,0.24022003,91733.0,91732.0,0.00011663]
[1765201654350,0.21802404,91733.0,91732.0,0.00011663]
[1765201654566,0.55121107,91733.0,91732.0,0.00011663]
[1765201654762,0.57340706,91733.0,91732.0,0.00111663]
[1765201655009,0.57340706,91733.0,91732.0,0.00011663]
[1765201655415,0.55221107,91733.0,91732.0,0.00011663]
[1765201655713,0.57440706,91733.0,91732.0,0.00011663]
[1765201656618,0.57540706,91733.0,91732.0,0.00011663]
[1765201657064,0.59172706,91733.0,91732.0,0.00011663]
[1765201657285,0.61818385,91733.0,91732.0,0.00111663]
[1765201657508,0.62518385,91733.0,91732.0,0.00111663]
[1765201657748,0.68770684,91733.0,91732.0,0.00111663]
[1765201657956,0.77705033,91733.0,91732.0,0.00111663]
[1765201658165,0.80633832,91733.0,91732.0,0.00111663]
[1765201658574,0.77705033,91733.0,91732.0,0.00111663]
[1765201658786,0.68770684,91733.0,91732.0,0.00111663]
[1765201659202,0.71297824,91733.0,91732.0,0.00011663]
[1765201659454,0.70265824,91733.0,91732.0,0.00111663]
[1765201659669,0.71997824,91733.0,91732.0,0.00111663]
[1765201660092,0.69778225,91733.0,91732.0,0.00111663]
[1765201660307,0.65119085,91733.0,91732.0,0.00111663]
[1765201660495,0.66851085,91733.0,91732.0,0.00111663]
[1765201660792,0.69070684,91733.0,91732.0,0.00111663]
[1765201661210,0.66725005,91733.0,91732.0,0.00111663]
[1765201661435,0.66025005,91733.0,91732.0,0.00111663]
[1765201661641,0.68365378,91733.0,91732.0,0.00111663]
[1765201662075,0.66725005,91733.0,91732.0,0.00111663]
[1765201662971,0.60472706,91733.0,91732.0,0.00111663]
[1765201664057,0.58740706,91733.0,91732.0,0.00111663]
[1765201664271,0.60472706,91733.0,91732.0,0.00111663]
[1765201664469,0.58253107,91733.0,91732.0,0.00111663]
[1765201664820,0.56521107,91733.0,91732.0,0.00111663]
[1765201665021,0.58253107,91733.0,91732.0,0.00111663]
[1765201665398,0.56521107,91733.0,91732.0,0.05041663]
[1765201665645,0.58253107,91733.0,91732.0,0.00111663]
[1765201665860,0.60472706,91733.0,91732.0,0.00111663]
[1765201666069,0.57234404,91733.0,91732.0,0.00111663]
[1765201666274,0.55502404,91733.0,91732.0,0.00111663]
[1765201666475,0.57234404,91733.0,91732.0,0.00111663]
[1765201667122,0.23202404,91733.0,91732.0,0.05041663]
[1765201667357,0.014,91733.0,91732.0,0.34005305]
[1765201668020,0.007,91733.0,91732.0,0.34005305]
[1765201668261,0.0080794,91736.0,91733.0,0.21802381]
[1765201668262,0.01090096,91735.0,91733.0,0.21802381]
[1765201668477,0.0080794,91736.0,91735.0,0.26731929]
[1765201668706,0.22890066,91743.0,91740.0,0.21800677]
[1765201668925,0.0109006,91738.0,91735.0,0.0493]
[1765201669142,0.0109006,91738.0,91735.0,0.218019]
[1765201669360,0.01089953,91747.0,91744.0,0.01089989]
[1765201669610,0.22889308,91746.0,91743.0,0.01090001]
[1765201669827,0.22889338,91746.0,91741.0,0.21800394]
[1765201670042,0.01090001,91743.0,91737.0,0.03808]
[1765201670257,0.21801216,91738.0,91737.0,0.03808]
[1765201671288,0.21802404,91733.0,91732.0,0.03819663]
[1765201671536,0.22892038,91735.0,91732.0,0.03819663]
[1765201671967,0.21802404,91733.0,91732.0,0.03819663]
[1765201672186,0.22892038,91735.0,91734.0,0.0493]
[1765201672629,0.22892038,91735.0,91734.0,0.12091]
[1765201672841,0.22892038,91735.0,91734.0,0.0493]
[1765201673278,0.22892038,91735.0,91734.0,0.12091]
[1765201673539,0.01190036,91740.0,91734.0,0.12091]
[1765201673540,0.01089977,91745.0,91742.0,0.21800259]
[1765201673775,0.06562146,91748.0,91745.0,0.01089977]
[1765201673975,0.06562146,91748.0,91747.0,0.26729077]
[1765201674190,0.28360986,91748.0,91747.0,0.0493]
[1765201674415,0.22928287,91750.0,91747.0,0.0493]
[1765201674416,0.0004,91750.0,91747.0,0.1334224]
[1765201674638,0.0004,91750.0,91749.0,0.26728602]
[1765201674812,0.0004,91750.0,91749.0,0.36269777]
[1765201675304,0.0004,91750.0,91749.0,0.12252287]
[1765201675512,0.0004,91750.0,91749.0,0.34050889]
[1765201675899,0.0004,91750.0,91749.0,0.12091]
[1765201676133,0.0004,91750.0,91749.0,0.0493]
[1765201676333,0.21838365,91750.0,91749.0,0.0503]
[1765201676915,0.21838365,91750.0,91749.0,0.0533]
[1765201678063,0.21838365,91750.0,91749.0,0.004]
[1765201678950,0.21838365,91750.0,91749.0,0.003]
[1765201679154,0.24057964,91750.0,91749.0,0.003]
[1765201679308,0.21938365,91750.0,91749.0,0.003]
[1765201679524,0.24157964,91750.0,91749.0,0.003]
[1765201679866,0.24057964,91750.0,91749.0,0.003]
[1765201680074,0.21802331,91734.0,91732.0,0.03819663]
[1765201680812,0.21802331,91734.0,91733.0,0.04389]
[1765201681022,0.21802331,91734.0,91732.0,0.03819663]
[1765201681230,0.2836455,91733.0,91732.0,0.00011663]
[1765201681887,0.2836455,91733.0,91732.0,0.00111663]
[1765201682090,0.2836455,91733.0,91732.0,0.00011663]
[1765201682458,0.2836455,91733.0,91732.0,0.04400663]
[1765201682880,0.21902404,91733.0,91732.0,0.11061663]
[1765201683398,0.001,91733.0,91732.0,0.11061663]
[1765201683610,0.21902404,91733.0,91732.0,0.11161663]
[1765201683819,0.21902404,91733.0,91732.0,0.00111663]
[1765201684865,0.21902404,91733.0,91732.0,0.04500663]
[1765201688234,0.21902404,91733.0,91732.0,0.00111663]
[1765201688441,0.24122003,91733.0,91732.0,0.00111663]
[1765201688654,0.56422003,91733.0,91732.0,0.00111663]
[1765201688856,0.57437281,91733.0,91732.0,0.00111663]
[1765201689232,0.56849682,91733.0,91732.0,0.00111663]
[1765201689490,0.57149682,91733.0,91732.0,0.00111663]
[1765201689973,0.57149682,91733.0,91732.0,0.00011663]
[1765201690194,0.59369281,91733.0,91732.0,0.00011663]
[1765201690389,0.59469281,91733.0,91732.0,0.00011663]
[1765201690548,0.57249682,91733.0,91732.0,0.00011663]
[1765201690750,0.59369281,91733.0,91732.0,0.00011663]
[1765201690974,0.60169281,91733.0,91732.0,0.00011663]
[1765201691591,0.57649682,91733.0,91732.0,0.00011663]
[1765201691791,0.59869281,91733.0,91732.0,0.00011663]
[1765201692422,0.58149682,91733.0,91732.0,0.00111663]
[1765201692826,0.58149682,91733.0,91732.0,0.00011663]
[1765201692827,0.57649682,91733.0,91732.0,0.00011663]
[1765201693060,0.59069281,91733.0,91732.0,0.00011663]
[1765201693244,0.59269281,91733.0,91732.0,0.00011663]
[1765201693394,0.59369281,91733.0,91732.0,0.00011663]
[1765201693871,0.59269281,91733.0,91732.0,0.00011663]
[1765201694006,0.59369281,91733.0,91732.0,0.00011663]
[1765201694876,0.59269281,91733.0,91732.0,0.00011663]
[1765201695062,0.58254003,91733.0,91732.0,0.00011663]
[1765201695361,0.59070139,91733.0,91732.0,0.00011663]
[1765201695527,0.59270139,91733.0,91732.0,0.00011663]
[1765201695953,0.5531854,91733.0,91732.0,0.11411663]
[1765201696139,0.5685054,91733.0,91732.0,0.04282663]
[1765201696442,0.5511854,91733.0,91732.0,0.04282663]
[1765201696644,0.5705054,91733.0,91732.0,0.04382663]
[1765201696849,0.5725054,91733.0,91732.0,0.04382663]
[1765201697175,0.5725054,91733.0,91732.0,0.00111663]
[1765201697375,0.59470139,91733.0,91732.0,0.00111663]
[1765201698535,0.5551854,91733.0,91732.0,0.00111663]
[1765201698737,0.59470139,91733.0,91732.0,0.00111663]
[1765201700422,0.59270139,91733.0,91732.0,0.00111663]
[1765201700918,0.5775054,91733.0,91732.0,0.00111663]
[1765201701119,0.5705054,91733.0,91732.0,0.00111663]
[1765201701566,0.5621854,91733.0,91732.0,0.00111663]
[1765201701745,0.5795054,91733.0,91732.0,0.00111663]
[1765201702090,0.5621854,91733.0,91732.0,0.04382663]
[1765201702294,0.5795054,91733.0,91732.0,0.04382663]
[1765201702624,0.5795054,91733.0,91732.0,0.00111663]
[1765201702625,0.5705054,91733.0,91732.0,0.00111663]
[1765201703498,0.59270139,91733.0,91732.0,0.00111663]
[1765201704297,0.59870139,91733.0,91732.0,0.00111663]
[1765201705712,0.62210542,91733.0,91732.0,0.00111663]
[1765201705913,0.62210542,91733.0,91690.0,0.03343]
[1765201705914,0.323,91719.0,91690.0,0.03343]
[1765201706136,0.01090619,91691.0,91690.0,0.03343]
[1765201706340,0.22903117,91691.0,91690.0,0.07614]
[1765201706536,0.22903117,91691.0,91690.0,0.14743]
[1765201706944,0.22903117,91691.0,91680.0,0.03343]
[1765201706945,0.01090714,91683.0,91680.0,0.03343]
[1765201707188,0.22904766,91684.0,91681.0,0.07129]
[1765201707427,7.197e-05,91683.0,91681.0,0.07290287]
[1765201707772,0.21821491,91683.0,91682.0,0.04271]
[1765201708171,0.21821491,91683.0,91682.0,0.114]
[1765201708374,0.21821491,91683.0,91682.0,0.04271]
[1765201708578,0.21814532,91682.0,91681.0,0.001]
[1765201708970,0.21814532,91682.0,91681.0,0.05071]
[1765201709317,0.21814532,91682.0,91681.0,0.115]
[1765201710380,0.21814532,91682.0,91681.0,0.04271]
[1765201711465,0.21914532,91682.0,91681.0,0.04271]
[1765201711880,0.21914532,91682.0,91681.0,0.007]
[1765201714618,0.21914532,91682.0,91681.0,0.04971]
[1765201715819,0.21914532,91682.0,91681.0,0.007]
[1765201718140,0.21814532,91682.0,91681.0,0.007]
[1765201719157,0.21814532,91682.0,91681.0,0.008]
[1765201719362,0.22414532,91682.0,91681.0,0.008]
[1765201719575,0.24634131,91682.0,91681.0,0.008]
[1765201719783,0.22414532,91682.0,91681.0,0.008]
[1765201720226,0.22414532,91682.0,91681.0,0.05071]
[1765201720825,0.22414532,91682.0,91681.0,0.008]
[1765201722875,0.24634131,91682.0,91681.0,0.008]
[1765201723269,0.25647489,91682.0,91681.0,0.008]
[1765201723568,0.24634131,91682.0,91681.0,0.008]
[1765201725123,0.22414532,91682.0,91681.0,0.008]
[1765201725528,0.56934131,91682.0,91681.0,0.008]
[1765201725685,0.57947595,91682.0,91681.0,0.008]
[1765201727067,0.68795523,91682.0,91681.0,0.008]
[1765201727275,0.71130253,91682.0,91681.0,0.008]
[1765201727910,1.57511053,91682.0,91681.0,1e-08]
[1765201728244,0.56338653,91663.0,91662.0,0.00290703]
[1765201728513,0.65646263,91663.0,91662.0,0.00290703]
[1765201728718,0.65645612,91663.0,91662.0,0.00290703]
[1765201729846,0.61694013,91663.0,91662.0,0.00290703]
[1765201730038,0.65645612,91663.0,91662.0,0.00290703]
[1765201731387,0.6564529,91663.0,91662.0,0.00290703]
[1765201732145,0.76493218,91663.0,91662.0,0.00290703]
[1765201732584,0.77093218,91663.0,91662.0,0.00390703]
[1765201732937,0.6624529,91663.0,91662.0,0.00390703]
[1765201734088,0.6564529,91663.0,91662.0,0.00290703]
[1765201734295,0.6564529,91663.0,91630.0,0.0002]
[1765201734296,0.54124292,91641.0,91630.0,0.0002]
[1765201734497,0.59088382,91641.0,91630.0,0.0002]
[1765201734714,0.59088382,91641.0,91632.0,0.03272]
[1765201734919,0.57356382,91641.0,91632.0,0.03272]
[1765201735126,0.59088382,91641.0,91632.0,0.03272]
[1765201735578,0.59088382,91641.0,91640.0,0.00058961]
[1765201735751,0.63430929,91641.0,91640.0,0.11086961]
[1765201735953,0.61698929,91641.0,91640.0,0.04221961]
[1765201736189,0.29898929,91641.0,91640.0,0.11086961]
[1765201736962,0.29898929,91641.0,91640.0,0.00058961]
[1765201737786,0.29398929,91641.0,91640.0,0.00058961]
[1765201738016,0.29898929,91641.0,91640.0,0.00058961]
[1765201738699,0.32118528,91641.0,91640.0,0.00058961]
[1765201739326,0.29898929,91641.0,91640.0,0.00058961]
[1765201739917,0.29898929,91641.0,91640.0,0.00123143]
[1765201740125,0.33850528,91641.0,91640.0,0.00123143]
[1765201740322,0.31630929,91641.0,91640.0,0.00123143]
[1765201740521,0.33850528,91641.0,91640.0,0.00123143]
[1765201740721,0.29898929,91641.0,91640.0,0.00123143]
[1765201740922,0.29898929,91641.0,91640.0,0.10062143]
[1765201741122,0.23336783,91641.0,91640.0,0.1022343]
[1765201742703,0.22324292,91641.0,91640.0,0.1022343]
[1765201744696,0.005,91641.0,91640.0,0.1022343]
[1765201745069,0.22324292,91641.0,91640.0,0.1022343]
[1765201745270,0.005,91641.0,91640.0,0.1022343]
[1765201745897,0.22324292,91641.0,91640.0,0.1022343]
[1765201746097,0.21824292,91641.0,91640.0,0.1022343]
[1765201746304,0.21824292,91641.0,91640.0,0.0429343]
[1765201746504,0.21924292,91641.0,91640.0,0.0439343]
[1765201747315,0.22424292,91641.0,91640.0,0.0439343]
[1765201747515,0.30000135,91641.0,91640.0,0.00223143]
[1765201747715,0.30000135,91641.0,91640.0,0.04232143]
[1765201748454,0.39265659,91641.0,91640.0,0.00223143]
[1765201748658,0.31719915,91641.0,91640.0,0.00223143]
[1765201749092,0.33451915,91641.0,91640.0,0.00223143]
[1765201749510,0.33751915,91641.0,91640.0,0.00223143]
[1765201749686,0.31532316,91641.0,91640.0,0.00223143]
[1765201749886,0.33451915,91641.0,91640.0,0.00223143]
[1765201750526,0.32319915,91641.0,91640.0,0.00123143]
[1765201750737,0.34451915,91641.0,91640.0,0.00223143]
[1765201752423,0.34453075,91641.0,91640.0,0.00223143]
[1765201752947,0.32233476,91641.0,91640.0,0.00223143]
[1765201754515,0.34453075,91641.0,91640.0,0.00223143]
[1765201755285,0.32233476,91641.0,91640.0,0.00223143]
[1765201755493,0.76741752,91641.0,91640.0,0.00223143]
[1765201755715,0.69096158,91641.0,91640.0,0.00223143]
[1765201756293,0.68396158,91641.0,91640.0,0.00223143]
[1765201756677,0.69196158,91641.0,91640.0,0.00046459]
[1765201756919,0.21826674,91631.0,91620.0,0.02969]
[1765201757123,0.25061311,91631.0,91630.0,0.00031672]
[1765201757536,0.25061311,91631.0,91630.0,0.00060852]
[1765201758170,0.24573712,91631.0,91630.0,0.04168852]
[1765201758778,0.24576356,91631.0,91630.0,0.04168852]
[1765201759170,0.24876356,91631.0,91630.0,0.00160852]
[1765201760275,0.29706502,91631.0,91630.0,0.04268852]
[1765201760666,0.30106502,91631.0,91630.0,0.04268852]
[1765201760885,0.30106502,91631.0,91630.0,0.10752852]
[1765201760886,0.31838502,91631.0,91630.0,0.10752852]
[1765201761402,0.3183869,91631.0,91630.0,0.04268852]
[1765201762127,0.3010669,91631.0,91630.0,0.10752852]
[1765201766854,0.23544544,91631.0,91630.0,0.10752852]
[1765201768290,0.22526674,91631.0,91630.0,0.10752852]
[1765201768493,0.23545108,91631.0,91630.0,0.10752852]
[1765201768691,0.23545108,91631.0,91630.0,0.10914139]
[1765201769296,0.22526674,91631.0,91630.0,0.10914139]
[1765201769494,0.22226674,91631.0,91630.0,0.10814139]
[1765201769693,0.22326674,91631.0,91630.0,0.11314139]
[1765201770147,0.22326674,91631.0,91630.0,0.14283139]
[1765201770314,0.21926674,91631.0,91630.0,0.14283139]
[1765201770498,0.22026674,91631.0,91630.0,0.14283139]
[1765201771098,0.002,91631.0,91630.0,0.14283139]
[1765201771496,0.002,91631.0,91630.0,0.36110051]
[1765201771706,0.002,91631.0,91630.0,0.14283139]
[1765201772067,0.22026674,91631.0,91630.0,0.14283139]
[1765201775174,0.002,91631.0,91630.0,0.14283139]
[1765201775791,0.22026674,91631.0,91630.0,0.14283139]
[1765201780007,0.2858882,91631.0,91630.0,0.00560852]
[1765201780357,0.29607779,91631.0,91630.0,0.00560852]
[1765201780787,0.2858882,91631.0,91630.0,0.00560852]
[1765201781185,0.3032082,91631.0,91630.0,0.14121852]
[1765201781715,0.3032082,91631.0,91630.0,0.03529852]
[1765201781953,0.32540419,91631.0,91630.0,0.00560852]
[1765201782412,0.33559397,91631.0,91630.0,0.00560852]
[1765201782917,0.31339798,91631.0,91630.0,0.07539852]
[1765201783208,0.31339798,91631.0,91630.0,0.13340852]
[1765201783411,0.29607798,91631.0,91630.0,0.13340852]
[1765201784057,0.23045652,91631.0,91630.0,0.13340852]
[1765201784263,0.22026674,91631.0,91630.0,0.13340852]
[1765201784561,0.22026674,91631.0,91630.0,0.13502139]
[1765201785139,0.002,91631.0,91630.0,0.13502139]
[1765201786333,0.22026674,91631.0,91630.0,0.13502139]
[1765201786895,0.002,91631.0,91630.0,0.35329051]
[1765201788457,0.002,91631.0,91630.0,0.37547939]
[1765201789260,0.001,91631.0,91630.0,0.37547939]
[1765201789473,0.002,91631.0,91630.0,0.37547939]
[1765201789678,0.001,91631.0,91630.0,0.37047939]
[1765201790066,0.001,91631.0,91630.0,0.38247939]
[1765201790550,0.002,91631.0,91630.0,0.38247939]
[1765201792328,0.001,91631.0,91630.0,0.37047939]
[1765201792534,0.01091119,91649.0,91643.0,0.0109119]
[1765201792692,0.01091071,91653.0,91650.0,0.22913036]
[1765201793027,0.01091083,91652.0,91649.0,0.22913497]
[1765201793180,0.21821943,91651.0,91650.0,0.05801]
[1765201793678,0.22912782,91652.0,91650.0,0.0958]
[1765201793914,0.22912782,91652.0,91651.0,0.03779]
[1765201794115,0.21821673,91652.0,91651.0,0.0958]
[1765201794642,0.01091024,91657.0,91654.0,0.2291225]
[1765201794643,0.21820686,91657.0,91654.0,0.2291225]
[1765201794830,0.01732,91669.0,91659.0,0.22910996]
[1765201794831,0.22910473,91662.0,91659.0,0.22910996]
[1765201795132,0.01090988,91660.0,91657.0,0.21820428]
[1765201795332,0.01090988,91660.0,91657.0,0.05801]
[1765201795538,0.01090988,91660.0,91659.0,0.06979]
[1765201795539,0.22910756,91660.0,91659.0,0.06979]
[1765201795967,0.0003885,91660.0,91659.0,0.1278]
[1765201796109,0.0003885,91660.0,91659.0,0.34600006]
[1765201796460,0.0033885,91660.0,91659.0,0.34600006]
[1765201796758,0.0003885,91660.0,91659.0,0.1278]
[1765201797002,0.21958618,91660.0,91659.0,0.1278]
[1765201798666,0.22858618,91660.0,91659.0,0.1278]
[1765201800783,0.22858618,91660.0,91659.0,0.36818894]
[1765201800784,0.0103885,91660.0,91659.0,0.36818894]
[1765201801154,0.0103885,91660.0,91659.0,0.34761293]
[1765201801728,0.0103885,91660.0,91659.0,0.36980181]
[1765201803945,0.0103885,91660.0,91659.0,0.34761293]
[1765201804143,0.0103885,91660.0,91659.0,0.36980181]
[1765201804927,0.0093885,91660.0,91659.0,0.36980181]
[1765201805344,0.0093885,91660.0,91659.0,0.13141287]
[1765201805345,0.0103885,91660.0,91659.0,0.13141287]
[1765201805520,0.21958618,91660.0,91659.0,0.13141287]
[1765201805907,0.22558618,91660.0,91659.0,0.13141287]
[1765201806348,0.0073885,91660.0,91659.0,0.13141287]
[1765201806556,0.0073885,91660.0,91659.0,0.34961293]
[1765201808873,0.0073885,91660.0,91659.0,0.37180181]
[1765201809848,0.0073885,91660.0,91659.0,0.15360175]
[1765201810610,0.0073885,91660.0,91659.0,0.37180181]
[1765201812700,0.0073885,91660.0,91659.0,0.34961293]
[1765201813024,0.0073885,91660.0,91659.0,0.37180181]
[1765201814173,0.0073885,91660.0,91659.0,0.38912181]
[1765201816161,0.0073885,91660.0,91659.0,0.42832494]
[1765201816377,0.0073885,91660.0,91659.0,0.38912181]
[1765201816784,0.0013885,91660.0,91659.0,0.38912181]
[1765201817213,0.0053885,91660.0,91659.0,0.38912181]
[1765201817413,0.0043885,91660.0,91659.0,5.38712181]
[1765201817611,0.0053885,91660.0,91659.0,5.39012181]
[1765201818318,0.0053885,91660.0,91659.0,0.36793293]
[1765201818515,0.0053885,91660.0,91659.0,2.42522181]
[1765201818737,0.0053885,91660.0,91659.0,2.39582181]
[1765201819110,0.0053885,91660.0,91659.0,0.65152181]
[1765201819281,0.0053885,91660.0,91659.0,1.36572181]
[1765201819904,0.0053885,91660.0,91659.0,0.68522181]
[1765201821634,0.0053885,91660.0,91659.0,5.39012181]
[1765201822849,0.0053885,91660.0,91659.0,2.84207387]
[1765201823053,0.0053885,91660.0,91659.0,1.14587387]
[1765201823253,0.0053885,91660.0,91659.0,0.79782181]
[1765201824298,0.04007435,91711.0,91703.0,0.01090476]
[1765201824493,0.03890651,91716.0,91711.0,0.05815]
[1765201824494,0.22063119,91712.0,91711.0,0.05815]
[1765201824705,0.23081643,91712.0,91711.0,0.05815]
[1765201824906,0.01274246,91712.0,91711.0,0.33579634]
[1765201825109,0.00255722,91712.0,91711.0,0.33579634]
[1765201825791,0.01355722,91712.0,91711.0,0.33579634]
[1765201826368,0.00255722,91712.0,91711.0,0.33579634]
[1765201826773,0.22963119,91712.0,91711.0,0.11772]
[1765201826978,0.22963119,91712.0,91711.0,0.05815]
[1765201827225,0.23063119,91712.0,91711.0,0.05815]